bitfinex-derivatives/quotes_BTCF0:USTF0_20240829
["timestamp","ask_amount","ask_price","bid_price","bid_amount"]
[1724947218118,1.19162142,60813.0,60812.0,0.07585799]
[1724947218328,1.19162142,60813.0,60812.0,0.0266877]
[1724947218540,1.27381142,60813.0,60812.0,0.0266877]
[1724947219327,1.19162142,60813.0,60812.0,0.0266877]
[1724947219531,0.59162142,60813.0,60812.0,0.0266877]
[1724947220026,1.19162142,60813.0,60812.0,0.0266877]
[1724947220228,1.55242142,60813.0,60812.0,0.0266877]
[1724947221130,1.55242142,60813.0,60812.0,0.0295977]
[1724947221328,0.95242142,60813.0,60812.0,0.0295977]
[1724947221632,1.55242142,60813.0,60812.0,0.0295977]
[1724947222926,1.63461142,60813.0,60812.0,0.0295977]
[1724947223230,0.95242142,60813.0,60812.0,0.0295977]
[1724947223420,1.55242142,60813.0,60812.0,0.07876799]
[1724947223930,0.37691142,60813.0,60812.0,0.07876799]
[1724947224120,0.37691142,60813.0,60812.0,0.0295977]
[1724947224121,0.01611142,60813.0,60812.0,0.0295977]
[1724947224325,0.4555,60824.0,60812.0,0.0295977]
[1724947224326,0.08218,60821.0,60812.0,0.0295977]
[1724947224633,0.3608,60824.0,60820.0,0.04921106]
[1724947224819,0.3608,60824.0,60817.0,0.28]
[1724947224820,0.3608,60824.0,60821.0,0.04921106]
[1724947225232,0.3608,60824.0,60822.0,0.04921106]
[1724947225529,0.13042874,60851.0,60817.0,0.6408]
[1724947225530,0.0038,60838.0,60823.0,0.6408]
[1724947225730,0.3608,60844.0,60835.0,0.04918329]
[1724947225731,0.082151,60842.0,60835.0,0.04918329]
[1724947226037,0.082151,60842.0,60836.0,0.04918329]
[1724947226227,0.49312,60842.0,60840.0,0.28]
[1724947226428,0.091,60846.0,60840.0,0.28]
[1724947226726,0.173145,60846.0,60845.0,0.28]
[1724947226932,0.666225,60846.0,60837.0,0.04918329]
[1724947227130,0.082159,60836.0,60835.0,0.00024657]
[1724947227326,0.682159,60836.0,60835.0,0.00024657]
[1724947227629,1.175279,60836.0,60835.0,0.00024657]
[1724947227820,1.175279,60836.0,60835.0,0.02440777]
[1724947228024,1.175279,60836.0,60835.0,0.00024657]
[1724947229028,1.175279,60836.0,60835.0,0.00224657]
[1724947229231,1.175279,60836.0,60835.0,0.02722577]
[1724947229630,1.257438,60836.0,60835.0,0.00224657]
[1724947229822,0.082167,60830.0,60829.0,0.0237723]
[1724947230025,0.082174,60825.0,60824.0,0.3608]
[1724947230233,0.9608,60830.0,60820.0,0.28]
[1724947230234,0.082176,60823.0,60821.0,0.04918329]
[1724947230539,0.082179,60821.0,60820.0,0.30497432]
[1724947230935,1.175419,60821.0,60820.0,0.30497432]
[1724947231235,1.09324,60821.0,60820.0,0.30497432]
[1724947231433,0.00024657,60827.0,60820.0,0.30497432]
[1724947231636,0.00024657,60827.0,60826.0,0.28]
[1724947231836,0.08241857,60827.0,60826.0,0.28]
[1724947232036,0.08141857,60827.0,60826.0,0.28]
[1724947232438,1.0932,60827.0,60821.0,0.28]
[1724947232634,0.0904,60829.0,60821.0,0.28]
[1724947232635,0.082178,60822.0,60821.0,0.28]
[1724947232840,0.164358,60821.0,60820.0,0.001]
[1724947233041,1.617398,60821.0,60820.0,0.00391]
[1724947233529,0.082187,60815.0,60814.0,0.00024657]
[1724947233730,0.936307,60815.0,60814.0,0.00024657]
[1724947234046,0.936307,60815.0,60814.0,0.02508679]
[1724947234047,1.536307,60815.0,60814.0,0.02508679]
[1724947234235,1.536307,60815.0,60814.0,0.28024657]
[1724947234438,0.441987,60815.0,60814.0,0.28024657]
[1724947234639,0.935307,60815.0,60814.0,0.28024657]
[1724947235046,0.935307,60815.0,60814.0,0.28124657]
[1724947235339,1.534307,60815.0,60814.0,0.28124657]
[1724947235644,0.082198,60807.0,60806.0,0.04918329]
[1724947235832,0.082204,60803.0,60802.0,0.28]
[1724947236236,0.081204,60803.0,60802.0,0.30427893]
[1724947237142,0.081204,60803.0,60802.0,0.02427893]
[1724947237344,0.082209,60799.0,60798.0,0.04918329]
[1724947237844,0.082209,60799.0,60798.0,0.02470804]
[1724947238041,0.082209,60799.0,60798.0,0.04913622]
[1724947238248,0.08221,60798.0,60797.0,0.04913625]
[1724947238944,0.07821,60798.0,60796.0,0.35362518]
[1724947239134,0.07521,60798.0,60796.0,0.35362518]
[1724947239336,0.07521,60798.0,60796.0,0.30448893]
[1724947239835,0.082206,60801.0,60796.0,0.02448893]
[1724947240035,0.082206,60801.0,60800.0,0.28]
[1724947240235,0.082206,60801.0,60800.0,0.28803726]
[1724947240943,0.3608,60802.0,60800.0,0.28803726]
[1724947241145,0.3608,60807.0,60800.0,0.28903726]
[1724947241339,0.3608,60807.0,60806.0,0.28]
[1724947241646,0.442998,60807.0,60806.0,0.28]
[1724947242844,0.448998,60807.0,60806.0,0.281]
[1724947243041,0.3668,60807.0,60806.0,0.281]
[1724947244045,0.37227542,60807.0,60806.0,0.281]
[1724947244551,0.37227542,60807.0,60806.0,0.3703]
[1724947245138,0.012,60807.0,60806.0,0.3703]
[1724947245751,0.012,60807.0,60806.0,0.39523056]
[1724947246138,0.3728,60807.0,60806.0,0.39523056]
[1724947246345,0.454998,60807.0,60806.0,0.39523056]
[1724947246752,0.454998,60807.0,60806.0,0.30593056]
[1724947247641,0.3728,60807.0,60806.0,0.30593056]
[1724947250246,0.012,60807.0,60806.0,0.30593056]
[1724947250448,0.012,60807.0,60806.0,0.02593056]
[1724947250756,0.012,60807.0,60806.0,0.07506681]
[1724947251449,0.00024657,60809.0,60806.0,0.38673056]
[1724947251752,0.00024657,60809.0,60808.0,0.329084]
[1724947251954,0.3608,60814.0,60808.0,0.329084]
[1724947252256,0.3608,60814.0,60809.0,0.049084]
[1724947252549,0.3608,60814.0,60809.0,0.110584]
[1724947252744,0.3608,60814.0,60810.0,0.0952]
[1724947253140,0.3608,60814.0,60810.0,0.144284]
[1724947253548,0.00024657,60818.0,60813.0,0.3608]
[1724947253746,0.082174,60825.0,60817.0,0.28]
[1724947253950,0.082174,60825.0,60824.0,0.28]
[1724947254450,0.0952,60827.0,60824.0,0.28]
[1724947254856,0.082174,60825.0,60824.0,0.28]
[1724947255149,0.082174,60825.0,60824.0,0.281]
[1724947255454,0.0952,60827.0,60824.0,0.282]
[1724947255854,0.3608,60829.0,60824.0,0.282]
[1724947256045,0.00016201,60832.0,60826.0,0.3608]
[1724947256245,0.00016201,60832.0,60831.0,0.6408]
[1724947256451,0.00016201,60832.0,60831.0,0.64886578]
[1724947257755,0.0942,60847.0,60831.0,0.69794978]
[1724947257946,0.0904,60847.0,60841.0,0.28]
[1724947258352,0.172544,60847.0,60841.0,0.28]
[1724947259156,0.174544,60847.0,60841.0,0.281]
[1724947259853,0.0924,60847.0,60841.0,0.281]
[1724947260059,0.002,60847.0,60841.0,0.281]
[1724947260256,0.002,60847.0,60841.0,0.3771]
[1724947260459,0.002,60847.0,60841.0,0.3781]
[1724947260762,0.002,60847.0,60841.0,0.40252864]
[1724947260965,0.49308,60846.0,60841.0,0.02642864]
[1724947261151,0.3608,60844.0,60841.0,0.02642864]
[1724947261355,0.49308,60846.0,60841.0,0.02642864]
[1724947261356,0.082151,60842.0,60841.0,0.02642864]
[1724947261859,1.175231,60842.0,60841.0,0.02642864]
[1724947262165,0.575231,60842.0,60841.0,0.02542864]
[1724947262466,1.175231,60842.0,60841.0,0.02642864]
[1724947262651,0.575231,60842.0,60841.0,0.02642864]
[1724947262856,0.002,60846.0,60841.0,0.30642864]
[1724947263155,0.002,60846.0,60844.0,0.082148]
[1724947263356,0.002,60846.0,60841.0,0.30542864]
[1724947263554,0.002,60846.0,60845.0,0.082147]
[1724947264072,0.3608,60848.0,60847.0,0.082144]
[1724947264260,0.3608,60848.0,60847.0,0.362144]
[1724947265855,0.3628,60848.0,60847.0,0.363144]
[1724947266166,0.3628,60848.0,60847.0,0.723944]
[1724947266167,0.002,60848.0,60847.0,0.723944]
[1724947266766,0.3608,60860.0,60847.0,0.723944]
[1724947266767,0.0947,60859.0,60857.0,0.08213]
[1724947266963,0.0947,60859.0,60857.0,0.36213]
[1724947267163,0.0947,60859.0,60858.0,0.082129]
[1724947267357,0.0947,60859.0,60857.0,0.28]
[1724947267554,0.176828,60859.0,60857.0,0.28]
[1724947268059,0.57509,60858.0,60856.0,0.082131]
[1724947268259,0.49296,60858.0,60855.0,0.3608]
[1724947268468,0.082132,60856.0,60855.0,0.442932]
[1724947268665,0.082132,60856.0,60855.0,0.3608]
[1724947268867,0.164272,60853.0,60852.0,0.00024657]
[1724947269260,1.256272,60853.0,60852.0,0.00024657]
[1724947269860,1.617072,60853.0,60852.0,0.00024657]
[1724947270062,0.493,60852.0,60840.0,0.0038]
[1724947270263,0.3608,60846.0,60840.0,0.3608]
[1724947270468,0.0904,60845.0,60840.0,0.3608]
[1724947270669,0.08215,60843.0,60842.0,0.082148]
[1724947270856,0.08115,60843.0,60842.0,0.082148]
[1724947271060,1.17323,60843.0,60842.0,0.082148]
[1724947271668,0.082152,60841.0,60840.0,0.3618]
[1724947271866,0.082152,60841.0,60840.0,0.001]
[1724947272065,1.536032,60841.0,60840.0,0.002]
[1724947272267,0.082158,60837.0,60836.0,0.00024657]
[1724947272761,1.175278,60837.0,60836.0,0.00024657]
[1724947273371,0.082158,60837.0,60836.0,0.00024657]
[1724947273567,1.174278,60837.0,60836.0,0.00024657]
[1724947273875,1.174278,60837.0,60836.0,0.08240557]
[1724947274071,0.574278,60837.0,60836.0,0.08240557]
[1724947274375,0.577278,60837.0,60836.0,0.08340557]
[1724947275069,0.004,60837.0,60836.0,0.08340557]
[1724947275775,0.008,60837.0,60836.0,0.17950557]
[1724947278667,0.008,60837.0,60836.0,0.08440557]
[1724947283773,0.008,60837.0,60836.0,0.27010557]
[1724947284274,0.008,60837.0,60836.0,0.31918957]
[1724947284472,0.008,60837.0,60836.0,0.27010557]
[1724947285479,0.008,60837.0,60836.0,0.09764657]
[1724947285684,0.008,60837.0,60836.0,0.00224657]
[1724947285879,0.090158,60837.0,60836.0,0.00224657]
[1724947286077,0.090158,60837.0,60836.0,0.05143925]
[1724947286569,0.090158,60837.0,60836.0,0.00224657]
[1724947286979,0.008,60837.0,60836.0,0.00224657]
[1724947287290,0.008,60837.0,60836.0,0.13359825]
[1724947287585,0.008,60837.0,60836.0,0.08440557]
[1724947287982,0.004,60837.0,60836.0,0.16656457]
[1724947288283,0.3608,60847.0,60837.0,0.082157]
[1724947288480,0.3608,60847.0,60846.0,0.28]
[1724947289083,0.3214,60848.0,60847.0,0.082144]
[1724947289285,0.00024657,60849.0,60848.0,0.082143]
[1724947289487,0.00024657,60849.0,60848.0,0.442943]
[1724947289983,0.00024657,60849.0,60848.0,0.49213654]
[1724947290184,0.00024657,60849.0,60848.0,0.442943]
[1724947290880,0.00024657,60849.0,60848.0,0.792943]
[1724947291085,0.00124657,60849.0,60848.0,0.793943]
[1724947291487,0.00124657,60849.0,60848.0,0.794943]
[1724947292873,0.3214,60859.0,60854.0,0.082133]
[1724947293077,0.18215033,60862.0,60858.0,0.3608]
[1724947294187,0.002,60859.0,60858.0,0.3608]
[1724947294883,0.001,60859.0,60858.0,0.442929]
[1724947295076,0.18415033,60862.0,60858.0,0.444929]
[1724947295479,0.26527533,60862.0,60858.0,0.3618]
[1724947295680,0.001,60859.0,60858.0,0.3628]
[1724947296686,0.001,60859.0,60858.0,0.443929]
[1724947296882,0.001,60859.0,60858.0,0.444929]
[1724947297292,0.18315033,60862.0,60858.0,0.444929]
[1724947297492,0.18315033,60862.0,60858.0,0.46963299]
[1724947297989,0.4171,60868.0,60858.0,0.46963299]
[1724947297990,0.082118,60867.0,60858.0,0.38750399]
[1724947298186,0.082118,60867.0,60863.0,0.432122]
[1724947298489,0.0957,60868.0,60863.0,0.432122]
[1724947298490,0.0957,60868.0,60864.0,0.082121]
[1724947298693,0.177816,60868.0,60864.0,0.082121]
[1724947298888,0.082119,60866.0,60863.0,0.35]
[1724947299084,0.082119,60866.0,60863.0,0.432122]
[1724947299285,0.082119,60866.0,60858.0,0.38750399]
[1724947299286,0.082128,60859.0,60858.0,0.38750399]
[1724947299485,0.164256,60859.0,60858.0,0.38750399]
[1724947299691,1.257216,60859.0,60858.0,0.002]
[1724947299889,1.257216,60859.0,60858.0,0.001]
[1724947300089,1.257216,60859.0,60858.0,0.002]
[1724947300889,0.081132,60856.0,60855.0,0.02427346]
[1724947301089,0.164266,60855.0,60854.0,0.00024657]
[1724947301290,0.082148,60844.0,60843.0,0.085949]
[1724947301490,0.081148,60844.0,60843.0,0.082149]
[1724947301895,0.081148,60844.0,60843.0,0.10695125]
[1724947302098,0.081148,60844.0,60843.0,0.02480225]
[1724947302393,0.081148,60844.0,60842.0,0.082151]
[1724947302693,0.00024657,60850.0,60843.0,0.7208]
[1724947302899,0.36004657,60852.0,60843.0,0.36]
[1724947303397,0.35904657,60852.0,60846.0,0.082145]
[1724947303594,0.082148,60844.0,60843.0,0.36]
[1724947303801,0.082147,60845.0,60843.0,0.36]
[1724947303988,0.082148,60844.0,60843.0,0.36]
[1724947304196,0.082148,60844.0,60839.0,0.04913248]
[1724947304393,0.084148,60844.0,60843.0,0.002]
[1724947304595,0.084148,60844.0,60843.0,0.003]
[1724947304993,0.082148,60844.0,60843.0,0.001]
[1724947305195,0.087148,60844.0,60843.0,0.002]
[1724947306889,0.087148,60844.0,60843.0,0.444149]
[1724947307906,0.087148,60844.0,60843.0,0.362]
[1724947308298,0.087148,60844.0,60843.0,0.002]
[1724947309196,0.169296,60844.0,60843.0,0.002]
[1724947309389,0.662376,60844.0,60843.0,0.002]
[1724947310506,0.169296,60844.0,60843.0,0.002]
[1724947310803,0.005,60844.0,60843.0,0.002]
[1724947310992,0.005,60844.0,60843.0,0.084149]
[1724947312492,0.3278,60855.0,60843.0,0.3628]
[1724947312689,0.3278,60855.0,60851.0,0.28]
[1724947313302,0.082141,60849.0,60843.0,0.282]
[1724947313499,0.086,60848.0,60843.0,0.282]
[1724947313703,0.409934,60855.0,60847.0,0.28]
[1724947314003,0.082135,60854.0,60853.0,0.28]
[1724947314303,0.3298,60855.0,60853.0,0.28]
[1724947314610,0.3278,60855.0,60853.0,0.28]
[1724947315398,0.3278,60855.0,60853.0,0.281]
[1724947315906,0.3278,60855.0,60853.0,0.363135]
[1724947316094,0.3278,60855.0,60854.0,0.082135]
[1724947316615,0.3278,60855.0,60854.0,0.173135]
[1724947316794,0.086,60860.0,60857.0,0.082129]
[1724947317002,0.086,60860.0,60859.0,0.28]
[1724947318998,0.086,60860.0,60859.0,0.281]
[1724947319395,0.3608,60862.0,60860.0,0.082127]
[1724947319797,0.0917,60867.0,60860.0,0.3608]
[1724947320004,0.0917,60867.0,60866.0,0.362118]
[1724947320205,0.173817,60867.0,60866.0,0.28]
[1724947320398,0.0917,60867.0,60860.0,0.64256]
[1724947320599,0.0917,60867.0,60863.0,0.082122]
[1724947320795,0.0917,60867.0,60860.0,0.6408]
[1724947320796,0.0917,60867.0,60860.0,0.3626]
[1724947320998,0.0917,60867.0,60866.0,0.28]
[1724947321798,0.0917,60867.0,60866.0,0.362118]
[1724947322100,0.3608,60870.0,60866.0,0.28]
[1724947322307,0.3608,60870.0,60869.0,0.082114]
[1724947323507,0.3608,60870.0,60867.0,0.0903]
[1724947323703,0.082117,60867.0,60866.0,0.02498667]
[1724947324609,0.080117,60867.0,60866.0,0.02398667]
[1724947324808,0.080117,60867.0,60866.0,0.082118]
[1724947325107,0.080117,60867.0,60866.0,0.00822608]
[1724947325299,0.080117,60867.0,60866.0,0.002]
[1724947325501,0.080117,60867.0,60866.0,0.01031767]
[1724947325703,0.162234,60867.0,60866.0,0.002]
[1724947326010,0.080117,60867.0,60866.0,0.002]
[1724947326704,0.080117,60867.0,60866.0,0.084118]
[1724947327108,0.080117,60867.0,60866.0,0.002]
[1724947328111,0.080117,60867.0,60866.0,0.084118]
[1724947328612,0.3608,60870.0,60868.0,0.082115]
[1724947328806,0.3608,60870.0,60869.0,0.362114]
[1724947330412,0.002,60870.0,60869.0,0.363114]
[1724947330617,0.002,60870.0,60869.0,0.723914]
[1724947330911,0.003,60870.0,60869.0,0.724914]
[1724947334217,0.3278,60878.0,60869.0,0.6428]
[1724947334515,0.0866,60880.0,60877.0,0.082104]
[1724947334516,0.1687,60880.0,60877.0,0.082104]
[1724947334715,0.0866,60880.0,60878.0,0.082102]
[1724947335102,0.6886,60885.0,60878.0,0.082102]
[1724947335307,0.082095,60883.0,60882.0,0.28]
[1724947335910,0.3608,60885.0,60882.0,0.28]
[1724947336110,0.3608,60885.0,60882.0,0.362096]
[1724947336314,0.3608,60885.0,60883.0,0.082095]
[1724947336516,0.3608,60885.0,60884.0,0.082094]
[1724947336812,0.3608,60885.0,60883.0,0.082095]
[1724947337113,0.0947,60886.0,60882.0,0.281]
[1724947337315,0.082095,60883.0,60882.0,0.281]
[1724947337824,0.082097,60882.0,60873.0,0.0038]
[1724947338011,0.164226,60870.0,60869.0,0.0048]
[1724947338207,0.082116,60868.0,60867.0,0.00024657]
[1724947338406,0.574953,60870.0,60858.0,0.2838]
[1724947338407,0.082117,60867.0,60858.0,0.2838]
[1724947338607,0.2842,60869.0,60858.0,0.02427406]
[1724947338809,0.082129,60859.0,60853.0,0.28]
[1724947339012,0.081129,60859.0,60853.0,0.28]
[1724947339204,0.081129,60859.0,60858.0,0.28]
[1724947339515,0.082127,60860.0,60858.0,0.28]
[1724947339717,0.082127,60860.0,60858.0,0.281]
[1724947340022,0.3598,60866.0,60858.0,0.281]
[1724947340317,0.082123,60863.0,60857.0,0.3608]
[1724947340708,0.3598,60866.0,60857.0,0.3608]
[1724947341114,0.3598,60866.0,60862.0,0.28]
[1724947341318,0.3598,60866.0,60857.0,0.3608]
[1724947341518,0.082129,60858.0,60857.0,0.3608]
[1724947341712,0.164262,60857.0,60856.0,0.00024637]
[1724947341916,0.163262,60857.0,60856.0,0.00024637]
[1724947342217,0.080131,60857.0,60856.0,0.00024637]
[1724947342719,0.079131,60857.0,60856.0,0.28024637]
[1724947342909,0.654222,60857.0,60856.0,0.00024637]
[1724947343110,0.654222,60857.0,60846.0,0.41370608]
[1724947343111,0.164288,60847.0,60846.0,0.0038]
[1724947343416,0.164288,60847.0,60835.0,0.2838]
[1724947343417,0.082159,60836.0,60835.0,0.2838]
[1724947343712,0.164318,60836.0,60835.0,0.02472592]
[1724947343921,0.082163,60833.0,60832.0,0.3608]
[1724947344817,0.081163,60833.0,60832.0,0.3608]
[1724947345612,0.084163,60833.0,60832.0,0.38600773]
[1724947346211,0.089163,60833.0,60832.0,0.38700773]
[1724947350404,0.171326,60833.0,60832.0,0.38700773]
[1724947351007,0.532126,60833.0,60832.0,0.002]
[1724947351217,0.614289,60833.0,60832.0,0.002]
[1724947354324,0.082171,60827.0,60821.0,0.0038]
[1724947354516,0.164364,60819.0,60818.0,0.3626]
[1724947354717,0.3608,60824.0,60818.0,0.3608]
[1724947354913,0.082171,60828.0,60823.0,0.36]
[1724947355118,0.3698,60833.0,60825.0,0.3608]
[1724947355324,0.087163,60833.0,60832.0,0.36]
[1724947355525,0.091163,60833.0,60832.0,0.36911101]
[1724947355723,0.086163,60833.0,60832.0,0.36911101]
[1724947356226,0.086163,60833.0,60832.0,0.36811101]
[1724947356415,0.091163,60833.0,60832.0,0.36911101]
[1724947356626,0.009,60833.0,60832.0,0.45127501]
[1724947356927,0.3608,60845.0,60844.0,0.082148]
[1724947357229,0.3608,60845.0,60840.0,0.36]
[1724947357415,0.3608,60845.0,60841.0,0.1825]
[1724947358822,0.3748,60845.0,60841.0,0.1825]
[1724947359127,0.3888,60845.0,60841.0,0.1835]
[1724947359524,0.3888,60845.0,60841.0,0.20845467]
[1724947360318,0.3888,60845.0,60842.0,0.08215]
[1724947361026,0.3888,60845.0,60843.0,0.082149]
[1724947361027,0.028,60845.0,60843.0,0.082149]
[1724947361214,0.028,60845.0,60841.0,0.20845467]
[1724947361421,0.028,60845.0,60842.0,0.44295]
[1724947361615,0.028,60845.0,60842.0,0.44495]
[1724947361821,0.028,60845.0,60842.0,0.002]
[1724947362028,0.028,60845.0,60842.0,0.3628]
[1724947362223,0.028,60845.0,60843.0,0.001]
[1724947362823,0.028,60845.0,60842.0,0.08599]
[1724947363025,0.028,60845.0,60842.0,0.08415]
[1724947363525,0.028,60845.0,60843.0,0.082149]
[1724947364624,0.014,60845.0,60843.0,0.082149]
[1724947364832,0.024,60845.0,60844.0,0.082148]
[1724947365830,0.024,60845.0,60843.0,0.002]
[1724947366031,0.106148,60845.0,60844.0,0.28]
[1724947366329,0.092148,60845.0,60844.0,0.28]
[1724947366531,0.106148,60845.0,60844.0,0.281]
[1724947366730,0.188296,60845.0,60844.0,0.001]
[1724947367435,0.191296,60845.0,60844.0,0.002]
[1724947367633,0.552096,60845.0,60844.0,0.002]
[1724947368923,0.547096,60845.0,60844.0,0.002]
[1724947369122,0.629244,60845.0,60844.0,0.002]
[1724947369323,0.082156,60838.0,60837.0,0.00024658]
[1724947369935,0.082156,60838.0,60837.0,0.02477684]
[1724947370129,0.081156,60838.0,60837.0,0.00024658]
[1724947370432,0.082171,60827.0,60824.0,0.28]
[1724947370639,0.3608,60827.0,60824.0,0.28]
[1724947370930,0.080174,60825.0,60824.0,0.362174]
[1724947371439,0.440974,60825.0,60824.0,0.28]
[1724947371734,0.440974,60825.0,60824.0,0.281]
[1724947372032,0.440974,60825.0,60824.0,0.3051015]
[1724947372532,0.440974,60825.0,60824.0,0.3061015]
[1724947373027,0.448974,60825.0,60824.0,0.3061015]
[1724947373738,0.456974,60825.0,60824.0,0.3061015]
[1724947374439,0.096174,60825.0,60824.0,0.3061015]
[1724947374738,0.096174,60825.0,60824.0,0.3882765]
[1724947374739,0.016,60825.0,60824.0,0.3882765]
[1724947374936,0.016,60825.0,60824.0,0.3061015]
[1724947375236,0.098174,60825.0,60824.0,0.3061015]
[1724947376655,0.00024658,60831.0,60824.0,0.3061015]
[1724947376938,0.00024658,60831.0,60830.0,0.722967]
[1724947377133,0.3278,60838.0,60833.0,0.082162]
[1724947377333,0.3608,60846.0,60837.0,0.28]
[1724947377638,0.442945,60846.0,60845.0,0.28]
[1724947378433,0.08238358,60852.0,60845.0,0.28]
[1724947378434,0.00024658,60852.0,60845.0,0.28]
[1724947378639,0.00024658,60852.0,60840.0,0.3608]
[1724947378640,0.00024658,60852.0,60851.0,0.28]
[1724947378828,0.08238358,60852.0,60851.0,0.28]
[1724947379035,0.00024658,60852.0,60851.0,0.28]
[1724947379735,0.00024658,60852.0,60851.0,0.362139]
[1724947379934,0.00924658,60852.0,60851.0,0.723939]
[1724947380235,0.00924658,60852.0,60851.0,0.74823493]
[1724947380432,0.00024658,60852.0,60851.0,0.79610939]
[1724947380631,0.00924658,60852.0,60851.0,0.74823493]
[1724947380938,0.082112,60871.0,60861.0,0.082125]
[1724947381132,0.3608,60874.0,60864.0,0.082121]
[1724947381328,0.3608,60874.0,60870.0,0.28]
[1724947381529,0.082109,60873.0,60870.0,0.28]
[1724947381733,0.3608,60874.0,60870.0,0.28]
[1724947381942,0.3608,60874.0,60871.0,0.082112]
[1724947382137,0.3608,60874.0,60872.0,0.35]
[1724947382941,0.3278,60876.0,60874.0,0.082108]
[1724947383143,0.36104637,60878.0,60874.0,0.082108]
[1724947383542,0.36104637,60878.0,60872.0,0.35]
[1724947383741,0.36104637,60878.0,60872.0,0.02534765]
[1724947384247,0.36104637,60878.0,60874.0,0.001]
[1724947384640,0.082106,60876.0,60874.0,0.001]
[1724947385441,0.082106,60876.0,60874.0,0.3618]
[1724947385942,0.00824637,60878.0,60875.0,0.082105]
[1724947386138,0.008,60876.0,60875.0,0.082105]
[1724947387243,0.008,60876.0,60875.0,0.001]
[1724947387745,0.09034837,60878.0,60875.0,0.002]
[1724947388255,0.09034837,60878.0,60875.0,0.084105]
[1724947388443,0.08234837,60878.0,60875.0,0.083105]
[1724947388641,0.008,60876.0,60875.0,0.084105]
[1724947389549,0.09034837,60878.0,60875.0,0.084105]
[1724947391045,0.00024637,60878.0,60876.0,0.082105]
[1724947391546,0.00024637,60878.0,60877.0,0.082104]
[1724947392046,0.00824637,60878.0,60877.0,0.082104]
[1724947392848,0.00824637,60878.0,60877.0,0.083104]
[1724947393838,0.17245037,60878.0,60877.0,0.001]
[1724947394042,0.09034837,60878.0,60877.0,0.001]
[1724947394346,0.17245037,60878.0,60877.0,0.002]
[1724947394651,0.082113,60870.0,60868.0,0.082115]
[1724947394849,0.082113,60870.0,60869.0,0.442914]
[1724947395153,0.00824637,60878.0,60877.0,0.164208]
[1724947395347,0.00824637,60878.0,60877.0,0.442904]
[1724947395651,0.00024637,60878.0,60877.0,0.442904]
[1724947395852,0.00024637,60878.0,60872.0,0.35]
[1724947395853,0.082105,60876.0,60874.0,0.082107]
[1724947396149,0.08211,60873.0,60869.0,0.38735564]
[1724947396349,0.08211,60873.0,60871.0,0.082111]
[1724947396561,0.00024637,60878.0,60869.0,0.38559564]
[1724947396850,0.082113,60870.0,60869.0,0.38659564]
[1724947397050,0.082113,60870.0,60869.0,0.46870964]
[1724947397251,0.082113,60870.0,60869.0,0.38659564]
[1724947397453,0.082113,60870.0,60869.0,0.02579564]
[1724947397653,0.525026,60870.0,60869.0,0.002]
[1724947397855,0.525026,60870.0,60860.0,0.0038]
[1724947397856,0.082116,60868.0,60860.0,0.0038]
[1724947398055,1.81444,60870.0,60857.0,0.02429366]
[1724947398056,0.081129,60858.0,60857.0,0.02429366]
[1724947398249,0.082131,60857.0,60856.0,0.082132]
[1724947398953,0.081133,60855.0,60852.0,0.172937]
[1724947399652,0.080133,60855.0,60853.0,0.082135]
[1724947399852,0.079133,60855.0,60852.0,0.11474772]
[1724947400045,0.009,60857.0,60856.0,0.082132]
[1724947400453,0.009,60857.0,60856.0,0.575092]
[1724947400652,0.009,60857.0,60856.0,0.082132]
[1724947400856,0.001,60855.0,60854.0,0.71264]
[1724947401061,0.001,60855.0,60854.0,0.7108]
[1724947401446,0.011,60855.0,60854.0,0.7108]
[1724947401857,0.011,60855.0,60854.0,0.792935]
[1724947402161,0.011,60855.0,60854.0,0.793935]
[1724947402760,0.011,60855.0,60854.0,0.7118]
[1724947402952,0.092133,60855.0,60854.0,0.7118]
[1724947403256,0.009,60855.0,60854.0,0.7118]
[1724947403848,0.01,60855.0,60854.0,0.7128]
[1724947404356,0.092133,60855.0,60854.0,0.282]
[1724947404560,0.092133,60855.0,60854.0,0.002]
[1724947405953,0.082139,60851.0,60850.0,0.00024658]
[1724947406155,0.442939,60851.0,60850.0,0.00024658]
[1724947406356,0.525078,60851.0,60850.0,0.00024658]
[1724947406555,0.442939,60851.0,60850.0,0.00024658]
[1724947407453,0.445939,60851.0,60850.0,0.00124658]
[1724947407648,0.456939,60851.0,60850.0,0.00224658]
[1724947408363,0.082145,60847.0,60839.0,0.0038]
[1724947408566,0.3608,60843.0,60840.0,0.082154]
[1724947408864,0.082145,60847.0,60846.0,0.082144]
[1724947409370,0.3748,60851.0,60850.0,0.08214]
[1724947409664,0.014,60851.0,60850.0,0.08214]
[1724947410054,0.014,60851.0,60850.0,0.44294]
[1724947410259,0.011,60851.0,60850.0,0.44294]
[1724947410461,0.00024658,60853.0,60852.0,0.082137]
[1724947412159,0.01324658,60853.0,60852.0,0.083137]
[1724947412961,0.01824658,60853.0,60852.0,0.084137]
[1724947415967,0.01824658,60853.0,60852.0,0.002]
[1724947415968,0.10038258,60853.0,60852.0,0.002]
[1724947421364,0.10038258,60853.0,60852.0,0.084137]
[1724947423156,0.10038258,60853.0,60852.0,0.002]
[1724947423157,0.18251858,60853.0,60852.0,0.002]
[1724947423769,0.10038258,60853.0,60852.0,0.002]
[1724947424771,0.10038258,60853.0,60852.0,0.084137]
[1724947425367,0.01824658,60853.0,60852.0,0.434137]
[1724947427073,0.01824658,60853.0,60852.0,1.05837548]
[1724947427371,0.01824658,60853.0,60852.0,1.609274]